fUST/lending_fUST_20240525
["ID","MTS","AMOUNT","RATE_DAILY","PERIOD"]
[327896222,1716586244061,-1227.45,0.00025753,6]
[327896223,1716586244071,-500.0,0.00025753,6]
[327896224,1716586244081,-500.0,0.00025753,6]
[327896225,1716586244090,-1341.96,0.00025753,6]
[327896226,1716586244099,-637.07,0.00025753,6]
[327896228,1716586244109,-335.23,0.00025753,6]
[327896230,1716586244118,-500.0,0.00025753,6]
[327896232,1716586244128,-259.36149527,0.00025753,6]
[327896234,1716586244138,-369.21652864,0.00025753,6]
[327896236,1716586244148,-500.0,0.00025753,6]
[327896239,1716586244157,-500.0,0.00025753,6]
[327896242,1716586244167,-2704.45,0.00026026,13]
[327896245,1716586244176,-302.30581018,0.00026027,7]
[327896247,1716586244185,-500.0,0.00026027,7]
[327896249,1716586244195,-159.23,0.00026027,7]
[327896251,1716586244204,-500.0,0.00026027,7]
[327896253,1716586244213,-500.0,0.00026027,7]
[327896255,1716586244222,-500.0,0.00026027,7]
[327896258,1716586244232,-290.33,0.00026027,7]
[327896260,1716586244241,-500.0,0.00026027,7]
[327896263,1716586244250,-500.0,0.00026027,7]
[327896267,1716586244260,-500.0,0.00026027,7]
[327896270,1716586244269,-500.0,0.00026027,7]
[327896272,1716586244279,-500.0,0.00026027,7]
[327896274,1716586244288,-500.0,0.00026027,7]
[327896277,1716586244298,-500.0,0.00026027,7]
[327896280,1716586244307,-500.0,0.00026027,7]
[327896283,1716586244317,-500.0,0.00026027,7]
[327896285,1716586244326,-500.0,0.00026027,7]
[327896288,1716586244335,-974.05,0.00026027,7]
[327896291,1716586244344,-500.0,0.00026027,7]
[327896294,1716586244353,-500.0,0.00026027,7]
[327896297,1716586244363,-500.0,0.00026027,7]
[327896300,1716586244373,-1227.45,0.00026027,7]
[327896303,1716586244382,-500.0,0.00026027,7]
[327896306,1716586244392,-500.0,0.00026027,7]
[327896309,1716586244401,-1341.96,0.00026027,7]
[327896312,1716586244410,-637.07,0.00026027,7]
[327896315,1716586244419,-500.0,0.00026027,7]
[327896318,1716586244429,-500.0,0.00026027,7]
[327896321,1716586244438,-3078.83,0.000263,3]
[327896324,1716586244448,-500.0,0.00026301,8]
[327896333,1716586244486,-500.0,0.00026301,8]
[327896336,1716586244496,-500.0,0.00026301,8]
[327896339,1716586244506,-294.46,0.00026301,8]
[327896342,1716586244515,-258.86,0.00026301,8]
[327896345,1716586244524,-500.0,0.00026301,8]
[327896348,1716586244534,-500.0,0.00026301,8]
[327896350,1716586244544,-500.0,0.00026301,8]
[327896352,1716586244554,-500.0,0.00026301,8]
[327896354,1716586244563,-592.36362551,0.00026301,8]
[327896356,1716586244572,-500.0,0.00026301,8]
[327896358,1716586244581,-500.0,0.00026301,8]
[327896360,1716586244590,-500.0,0.00026301,8]
[327896362,1716586244600,-500.0,0.00026301,8]
[327896364,1716586244609,-974.05,0.00026301,8]
[327896366,1716586244618,-358.32812072,0.00026301,8]
[327896368,1716586244628,-500.0,0.00026301,8]
[327896370,1716586244637,-500.0,0.00026301,8]
[327896372,1716586244646,-1227.45,0.00026301,8]
[327896374,1716586244655,-500.0,0.00026301,8]
[327896376,1716586244665,-500.0,0.00026301,8]
[327896378,1716586244674,-1341.96,0.00026301,8]
[327896380,1716586244683,-637.07,0.00026301,8]
[327896382,1716586244692,-500.0,0.00026301,8]
[327896384,1716586244702,-496.28,0.00026301,8]
[327896386,1716586244711,-500.0,0.00026575,9]
[327896388,1716586244721,-500.0,0.00026575,9]
[327896390,1716586244730,-500.0,0.00026575,9]
[327896392,1716586244741,-500.0,0.00026575,9]
[327896394,1716586244756,-638.67,0.00026575,9]
[327896396,1716586244766,-153.74406954,0.00026575,9]
[327896397,1716586244775,-500.0,0.00026575,9]
[327896399,1716586244786,-500.0,0.00026575,9]
[327896401,1716586244797,-500.0,0.00026575,9]
[327896403,1716586244806,-500.0,0.00026575,9]
[327896405,1716586244816,-500.0,0.00026575,9]
[327896407,1716586244826,-974.05,0.00026575,9]
[327896409,1716586244835,-500.0,0.00026575,9]
[327896411,1716586244845,-500.0,0.00026575,9]
[327896413,1716586244855,-1227.45,0.00026575,9]
[327896415,1716586244865,-500.0,0.00026575,9]
[327896417,1716586244875,-621.24480575,0.00026575,9]
[327896419,1716586244884,-390.28897105,0.00026575,9]
[327896444,1716586245119,-500.0,0.00024657,2]
[327896446,1716586245129,-500.0,0.00024657,2]
[327896448,1716586245139,-500.0,0.00024931,3]
[327896450,1716586245148,-951.67102895,0.00026575,9]
[327896451,1716586245158,-637.07,0.00026575,9]
[327896452,1716586245167,-500.0,0.00026575,9]
[327896453,1716586245176,-500.0,0.00026849,10]
[327896454,1716586245186,-500.0,0.00026849,10]
[327896455,1716586245196,-500.0,0.00026849,10]
[327896456,1716586245206,-500.0,0.00026849,10]
[327896457,1716586245216,-500.0,0.00026849,10]
[327896458,1716586245226,-533.88,0.00026849,10]
[327896459,1716586245235,-500.0,0.00026849,10]
[327896461,1716586245246,-974.05,0.00026849,10]
[327896463,1716586245256,-500.0,0.00026849,10]
[327896465,1716586245266,-500.0,0.00026849,10]
[327896467,1716586245276,-1227.45,0.00026849,10]
[327896469,1716586245285,-500.0,0.00026849,10]
[327896470,1716586245295,-1341.96,0.00026849,10]
[327896472,1716586245305,-637.07,0.00026849,10]
[327896474,1716586245314,-500.0,0.00026849,10]
[327896476,1716586245324,-500.0,0.00027123,11]
[327896477,1716586245333,-500.0,0.00027123,11]
[327896479,1716586245342,-500.0,0.00027123,11]
[327896480,1716586245352,-481.42,0.00027123,11]
[327896481,1716586245361,-500.0,0.00027123,11]
[327896482,1716586245371,-500.0,0.00027123,11]
[327896483,1716586245380,-974.05,0.00027123,11]
[327896484,1716586245390,-500.0,0.00027123,11]
[327896485,1716586245399,-500.0,0.00027123,11]
[327896486,1716586245409,-1227.45,0.00027123,11]
[327896487,1716586245419,-500.0,0.00027123,11]
[327896488,1716586245429,-1341.96,0.00027123,11]
[327896489,1716586245439,-637.07,0.00027123,11]
[327896490,1716586245449,-500.0,0.00027123,11]
[327896491,1716586245458,-1137.40253748,0.0002739,2]
[327896492,1716586245468,-3078.83,0.00027396,3]
[327896493,1716586245477,-500.0,0.00027397,12]
[327896494,1716586245487,-500.0,0.00027397,12]
[327896495,1716586245496,-500.0,0.00027397,12]
[327896496,1716586245506,-500.0,0.00027397,12]
[327896497,1716586245515,-500.0,0.00027397,12]
[327896498,1716586245525,-974.05,0.00027397,12]
[327896499,1716586245535,-410.11,0.00027397,12]
[327896500,1716586245546,-500.0,0.00027397,12]
[327896501,1716586245557,-1227.45,0.00027397,12]
[327896502,1716586245567,-500.0,0.00027397,12]
[327896503,1716586245577,-1341.96,0.00027397,12]
[327896504,1716586245587,-637.07,0.00027397,12]
[327896505,1716586245597,-500.0,0.00027397,12]
[327896506,1716586245607,-500.0,0.00027397,2]
[327896507,1716586245616,-500.0,0.00027397,2]
[327896508,1716586245626,-500.0,0.00027397,2]
[327896509,1716586245636,-500.0,0.00027397,2]
[327896510,1716586245647,-500.0,0.00027397,2]
[327896511,1716586245657,-500.0,0.00027397,2]
[327896512,1716586245667,-500.0,0.00027397,2]
[327896513,1716586245677,-500.0,0.00027397,2]
[327896514,1716586245687,-182.4691189,0.00027397,2]
[327896515,1716586245697,-500.0,0.00027397,2]
[327896516,1716586245706,-235.0,0.000274,2]
[327896517,1716586245716,-873.56445839,0.00027505,2]
[327896518,1716586245726,-500.0,0.00027671,13]
[327896519,1716586245735,-500.0,0.00027671,13]
[327896520,1716586245748,-500.0,0.00027671,13]
[327896521,1716586245758,-500.0,0.00027671,13]
[327896522,1716586245768,-500.0,0.00027671,13]
[327896523,1716586245778,-974.05,0.00027671,13]
[327896524,1716586245789,-500.0,0.00027671,13]
[327896525,1716586245799,-1227.45,0.00027671,13]
[327896526,1716586245809,-500.0,0.00027671,13]
[327896527,1716586245818,-1341.96,0.00027671,13]
[327896528,1716586245830,-637.07,0.00027671,13]
[327896529,1716586245841,-500.0,0.00027671,13]
[327896530,1716586245850,-321.66,0.00027945,14]
[327896531,1716586245860,-500.0,0.00027945,14]
[327896532,1716586245869,-500.0,0.00027945,14]
[327896533,1716586245879,-500.0,0.00027945,14]
[327896534,1716586245889,-974.05,0.00027945,14]
[327896535,1716586245898,-500.0,0.00027945,14]
[327896536,1716586245908,-1227.45,0.00027945,14]
[327896537,1716586245918,-500.0,0.00027945,14]
[327896538,1716586245927,-1341.96,0.00027945,14]
[327896539,1716586245937,-637.07,0.00027945,14]
[327896540,1716586245947,-500.0,0.00027945,14]
[327896541,1716586245957,-221.76141425,0.00028,2]
[327896542,1716586245966,-456.57692779,0.00028,2]
[327896543,1716586245976,-760.9951019,0.00028,2]
[327896544,1716586245986,-500.0,0.00028219,15]
[327896545,1716586245995,-500.0,0.00028219,15]
[327896546,1716586246005,-974.05,0.00028219,15]
[327896547,1716586246015,-500.0,0.00028219,15]
[327896548,1716586246024,-1227.45,0.00028219,15]
[327896549,1716586246034,-500.0,0.00028219,15]
[327896550,1716586246043,-1341.96,0.00028219,15]
[327896551,1716586246053,-637.07,0.00028219,15]
[327896552,1716586246063,-500.0,0.00028219,15]
[327896553,1716586246073,-667.56800009,0.00028328,2]
[327896554,1716586246083,-300.0,0.000284,2]
[327896555,1716586246092,-500.0,0.00028493,16]
[327896556,1716586246102,-500.0,0.00028493,16]
[327896557,1716586246111,-974.05,0.00028493,16]
[327896558,1716586246121,-500.0,0.00028493,16]
[327896559,1716586246131,-1227.45,0.00028493,16]
[327896560,1716586246140,-500.0,0.00028493,16]
[327896561,1716586246149,-1341.96,0.00028493,16]
[327896562,1716586246159,-637.07,0.00028493,16]
[327896563,1716586246169,-500.0,0.00028493,16]
[327896564,1716586246178,-500.0,0.00028767,17]
[327896565,1716586246188,-320.64,0.00028767,17]
[327896566,1716586246197,-974.05,0.00028767,17]
[327896567,1716586246207,-500.0,0.00028767,17]
[327896568,1716586246217,-1227.45,0.00028767,17]
[327896569,1716586246227,-500.0,0.00028767,17]
[327896572,1716586246236,-1341.96,0.00028767,17]
[327896573,1716586246245,-637.07,0.00028767,17]
[327896575,1716586246255,-500.0,0.00028767,17]
[327896577,1716586246265,-409.2140533,0.00028785,2]
[327896579,1716586246275,-500.0,0.00029041,18]
[327896581,1716586246284,-974.05,0.00029041,18]
[327896583,1716586246293,-500.0,0.00029041,18]
[327896585,1716586246303,-1227.45,0.00029041,18]
[327896587,1716586246312,-500.0,0.00029041,18]
[327896589,1716586246322,-1053.6353909,0.00029041,18]
[327896592,1716586246344,-500.0,0.00024931,3]
[327896594,1716586246354,-288.3246091,0.00029041,18]
[327896596,1716586246364,-637.07,0.00029041,18]
[327896597,1716586246374,-180.48938359,0.00029041,18]
[327896598,1716586246384,-152.71459282,0.00029088,2]
[327896599,1716586246394,-573.0794615,0.00029283,2]
[327896600,1716586246404,-974.05,0.00029315,19]
[327896601,1716586246414,-500.0,0.00029315,19]
[327896603,1716586246423,-1227.45,0.00029315,19]
[327896605,1716586246433,-500.0,0.00029315,19]
[327896606,1716586246442,-1341.96,0.00029315,19]
[327896607,1716586246452,-637.07,0.00029315,19]
[327896608,1716586246462,-573.0794615,0.00029377,2]
[327896609,1716586246472,-573.0794615,0.00029392,2]
[327896610,1716586246482,-300.0,0.000294,2]
[327896611,1716586246492,-573.0794615,0.00029524,2]
[327896612,1716586246501,-573.0794615,0.00029564,2]
[327896613,1716586246511,-158.65629789,0.00029575,2]
[327896614,1716586246521,-974.05,0.00029589,20]
[327896615,1716586246531,-500.0,0.00029589,20]
[327896616,1716586246540,-1227.45,0.00029589,20]
[327896617,1716586246551,-500.0,0.00029589,20]
[327896618,1716586246560,-1341.96,0.00029589,20]
[327896619,1716586246570,-637.07,0.00029589,20]
[327896620,1716586246580,-573.0794615,0.00029635,2]
[327896621,1716586246589,-573.0794615,0.00029735,2]
[327896622,1716586246599,-152.71459282,0.00029763,2]
[327896623,1716586246609,-152.71459282,0.00029767,2]
[327896624,1716586246619,-2000.0,0.00029792,2]
[327896626,1716586246629,-573.0794615,0.00029804,2]
[327896627,1716586246639,-496.0,0.00029821,2]
[327896628,1716586246649,-974.05,0.00029863,21]
[327896629,1716586246659,-500.0,0.00029863,21]
[327896630,1716586246669,-1227.45,0.00029863,21]
[327896631,1716586246679,-620.11,0.00029863,21]
[327896632,1716586246689,-1341.96,0.00029863,21]
[327896634,1716586246699,-637.07,0.00029863,21]
[327896635,1716586246709,-573.0794615,0.00029879,2]
[327896636,1716586246718,-441.62112131,0.000299,2]
[327896637,1716586246728,-441.62112123,0.000299,2]
[327896638,1716586246738,-441.62112123,0.000299,2]
[327896639,1716586246751,-441.62112123,0.000299,2]
[327896640,1716586246760,-441.62112123,0.000299,2]
[327896642,1716586246770,-441.62112123,0.000299,2]
[327896644,1716586246780,-441.62112123,0.000299,2]
[327896645,1716586246791,-441.62112123,0.000299,2]
[327896647,1716586246801,-441.62112123,0.000299,2]
[327896648,1716586246810,-441.62112123,0.000299,2]
[327896649,1716586246820,-573.0794615,0.00029907,2]
[327896650,1716586246832,-573.0794615,0.0002993,2]
[327896651,1716586246842,-573.0794615,0.00029934,2]
[327896652,1716586246852,-573.0794615,0.0002998,2]
[327896653,1716586246863,-3078.83,0.00029998,3]
[327896654,1716586246873,-12753.32015021,0.0003,2]
[327896655,1716586246883,-783.85662241,0.0003,4]
[327896656,1716586246893,-17243.67081528,0.0003,10]
[327896657,1716586246903,-154.82968734,0.0003,4]
[327896658,1716586246913,-150.0,0.0003,2]
[327896659,1716586246923,-1210.66841003,0.0003,3]
[327896660,1716586246934,-248.0,0.0003,2]
[327896661,1716586246945,-152.71459282,0.00030065,7]
[327896662,1716586246955,-573.0794615,0.00030069,7]
[327896663,1716586246966,-573.0794615,0.00030122,7]
[327896665,1716586246975,-974.05,0.00030136,22]
[327896667,1716586246985,-500.0,0.00030136,22]
[327896669,1716586246995,-1227.45,0.00030136,22]
[327896671,1716586247005,-1341.96,0.00030136,22]
[327896673,1716586247017,-637.07,0.00030136,22]
[327896674,1716586247027,-400.0,0.00030137,30]
[327896675,1716586247037,-573.0794615,0.00030166,7]
[327896676,1716586247048,-289.719547,0.0003031,2]
[327896677,1716586247057,-300.0,0.000304,3]
[327896678,1716586247067,-2203.05540858,0.000304,15]
[327896679,1716586247085,-622.44,0.00025205,4]
[327896680,1716586247095,-1933.77644335,0.000304,15]
[327896681,1716586247105,-974.05,0.0003041,23]
[327896682,1716586247115,-583.61,0.0003041,23]
[327896683,1716586247124,-1227.45,0.0003041,23]
[327896684,1716586247133,-1341.96,0.0003041,23]
[327896685,1716586247143,-637.07,0.0003041,23]
[327896686,1716586247153,-150.0,0.00030411,2]
[327896687,1716586247162,-153.0,0.00030413,2]
[327896688,1716586247172,-153.0,0.00030413,2]
[327896689,1716586247182,-153.0,0.00030413,2]
[327896690,1716586247192,-153.0,0.00030413,2]
[327896691,1716586247202,-3078.83,0.00030497,3]
[327896692,1716586247212,-2558.33518356,0.00030497,30]
[327896693,1716586247222,-573.0794615,0.00030644,7]
[327896694,1716586247232,-1000.0,0.00030646,2]
[327896695,1716586247242,-1000.0,0.00030681,2]
[327896696,1716586247252,-974.05,0.00030684,24]
[327896697,1716586247261,-1227.45,0.00030684,24]
[327896698,1716586247271,-1341.96,0.00030684,24]
[327896699,1716586247281,-151.0,0.00030684,2]
[327896700,1716586247290,-2819.609842,0.00030684,2]
[327896701,1716586247301,-637.07,0.00030684,24]
[327896702,1716586247311,-2819.609842,0.00030684,2]
[327896703,1716586247321,-151.0,0.00030684,2]
[327896704,1716586247330,-151.0,0.00030684,2]
[327896705,1716586247340,-366.722366,0.00030684,2]
[327896706,1716586247350,-366.722366,0.00030684,2]
[327896707,1716586247360,-151.0,0.00030684,2]
[327896708,1716586247370,-153.0,0.00030686,2]
[327896709,1716586247379,-306.0,0.00030686,2]
[327896710,1716586247390,-306.0,0.00030686,2]
[327896711,1716586247399,-1000.0,0.00030693,2]
[327896712,1716586247409,-540.06678801,0.00030702,2]
[327896713,1716586247989,-459.93321199,0.00030702,2]
[327896714,1716586248000,-4226.56801723,0.0003075,2]
[327896715,1716586248009,-1000.0,0.00030762,2]
[327896716,1716586248019,-1000.0,0.00030764,2]
[327896717,1716586248028,-265.69877078,0.00030777,2]
[327896718,1716586248041,-151.87214479,0.00030777,2]
[327896719,1716586248052,-1000.0,0.00030793,2]
[327896720,1716586248063,-207.784917,0.00030793,2]
[327896721,1716586248073,-151.0,0.00030793,2]
[327896722,1716586248082,-151.0,0.00030793,2]
[327896723,1716586248093,-573.0794615,0.00030891,7]
[327896724,1716586248103,-229.02622647,0.00030893,7]
[327896725,1716586248117,-344.05323503,0.00030893,7]
[327896726,1716586248126,-498.94676497,0.00030958,25]
[327896727,1716586403225,154.82968734,9.999e-05,2]
[327896728,1716586453451,3633.2531206,9.999e-05,2]
[327896729,1716586473460,1942.48938734,9.999e-05,2]
[327896730,1716586693495,164.02008532,9.999e-05,2]
[327896731,1716586906783,513.98587396,9.999e-05,2]
[327896732,1716586921609,1043.9787751,9.999e-05,2]
[327896733,1716587062809,154.82968734,9.999e-05,2]
[327896734,1716587140467,5844.724,0.00027,30]
[327896735,1716587218506,690.72744387,9.999e-05,2]
[327896736,1716587233169,-243.98695099,0.00016957,2]
[327896737,1716587245121,-269.99892297,0.00016957,2]
[327896738,1716587245143,-186.26525714,0.00016958,2]
[327896739,1716587251099,-320.16374786,0.00016958,2]
[327896740,1716587251121,-177.9077597,0.0001734,2]
[327896741,1716587289655,302.00000098,9.999e-05,2]
[327896742,1716587301152,521.71519389,9.999e-05,2]
[327896743,1716587349101,-2305.3993934,0.00016741,2]
[327896744,1716587349124,-72.0922403,0.0001734,2]
[327896745,1716587349149,-7723.47755602,0.00017361,2]
[327896746,1716587349171,-5694.05194218,0.00017362,2]
[327896747,1716587355153,-14142.01315631,0.00017362,2]
[327896748,1716587357105,-5063.93490151,0.00017362,2]
[327896749,1716587357126,-784.81963916,0.00017732,2]
[327896750,1716587363182,-190.30351455,0.00017732,2]
[327896751,1716587421868,395.60607896,9.999e-05,2]
[327896776,1716587431928,-53.10122399,0.00017732,2]
[327896778,1716587431938,-203.56634597,0.0001809,2]
[327896779,1716587431947,-799.51086567,0.00018098,2]
[327896780,1716587431957,-690.27941609,0.00018098,2]
[327896781,1716587431967,-210.05095746,0.00018098,2]
[327896782,1716587431977,-155.07721066,0.00018099,2]
[327896783,1716587431986,-456.26418011,0.00018099,2]
[327896784,1716587431995,-745.1889105,0.00018818,2]
[327896785,1716587432005,-184.67950699,0.000191,2]
[327896786,1716587432014,-273.72171019,0.0001913,2]
[327896787,1716587432024,-219.37999711,0.00019131,2]
[327896788,1716587432034,-2898.37197526,0.00019132,2]
[327896789,1716587432047,-5834.68073492,0.00019132,2]
[327896806,1716587437979,-6266.94728982,0.00019132,2]
[327896807,1716587437989,-202.664148,0.00019178,2]
[327896808,1716587438000,-486.56013616,0.00019624,2]
[327896809,1716587438010,-693.53941589,0.00019624,2]
[327896810,1716587438020,-2598.5410692,0.00019723,2]
[327896811,1716587438031,-510.22706272,0.00019723,2]
[327896812,1716587438042,-158.50953709,0.00019723,2]
[327896813,1716587438054,-906.09185901,0.00019723,2]
[327896814,1716587438066,-522.72294863,0.00019723,2]
[327896816,1716587438076,-1581.38466236,0.00019723,2]
[327896818,1716587438087,-285.88780231,0.00019723,2]
[327896820,1716587438097,-946.38470941,0.00019723,2]
[327896822,1716587438107,-835.24421665,0.00019724,2]
[327896824,1716587438118,-262.31694142,0.00019724,2]
[327896826,1716587438128,-229.3833631,0.00019724,2]
[327896828,1716587438139,-393.38553551,0.00019724,2]
[327896829,1716587438150,-562.87769631,0.00019724,2]
[327896830,1716587438167,-500.0,0.00019724,2]
[327896831,1716587438178,-500.0,0.00019724,2]
[327896832,1716587438189,-152.37181397,0.00019724,2]
[327896833,1716587438200,-500.0,0.00019724,2]
[327896834,1716587438210,-500.0,0.00019724,2]
[327896835,1716587438221,-500.0,0.00019724,2]
[327896836,1716587438232,-500.0,0.00019724,2]
[327896837,1716587438242,-500.0,0.00019724,2]
[327896838,1716587438252,-500.0,0.00019724,2]
[327896839,1716587438262,-500.0,0.00019724,2]
[327896840,1716587438273,-500.0,0.00019724,2]
[327896841,1716587438283,-500.0,0.00019724,2]
[327896842,1716587438293,-500.0,0.00019724,2]
[327896843,1716587438303,-500.0,0.00019724,2]
[327896844,1716587438315,-500.0,0.00019724,2]
[327896845,1716587438325,-500.0,0.00019724,2]
[327896846,1716587438335,-500.0,0.00019724,2]
[327896847,1716587438346,-500.0,0.00019724,2]
[327896848,1716587438356,-500.0,0.00019724,2]
[327896849,1716587438367,-500.0,0.00019724,2]
[327896850,1716587438377,-500.0,0.00019724,2]
[327896851,1716587438387,-500.0,0.00019724,2]
[327896852,1716587438398,-500.0,0.00019724,2]
[327896853,1716587438408,-500.0,0.00019724,2]
[327896854,1716587438419,-500.0,0.00019724,2]
[327896855,1716587438429,-365.28270074,0.00019724,2]
[327896856,1716587438439,-500.0,0.00019724,2]
[327896857,1716587438450,-500.0,0.00019724,2]
[327896858,1716587438460,-500.0,0.00019724,2]
[327896859,1716587438470,-500.0,0.00019724,2]
[327896860,1716587438480,-500.0,0.00019724,2]
[327896861,1716587438491,-666.154843,0.00019724,2]
[327896862,1716587438501,-666.154843,0.00019724,2]
[327896863,1716587438511,-666.154843,0.00019724,2]
[327896864,1716587438521,-666.154843,0.00019724,2]
[327896865,1716587438532,-666.154843,0.00019724,2]
[327896866,1716587438542,-666.154843,0.00019724,2]
[327896867,1716587438552,-666.154843,0.00019724,2]
[327896868,1716587438563,-666.154843,0.00019724,2]
[327896869,1716587438573,-666.154843,0.00019724,2]
[327896870,1716587438584,-666.154843,0.00019724,2]
[327896871,1716587438595,-666.154843,0.00019724,2]
[327896872,1716587438605,-666.154843,0.00019724,2]
[327896873,1716587438615,-666.154843,0.00019724,2]
[327896874,1716587438625,-666.154843,0.00019724,2]
[327896875,1716587438636,-666.154843,0.00019724,2]
[327896876,1716587438646,-666.154843,0.00019724,2]
[327896877,1716587438656,-666.154843,0.00019724,2]
[327896878,1716587438667,-666.154843,0.00019724,2]
[327896879,1716587438677,-666.154843,0.00019724,2]
[327896880,1716587438688,-666.154843,0.00019724,2]
[327896881,1716587438698,-666.154843,0.00019724,2]
[327896882,1716587438709,-666.154843,0.00019724,2]
[327896883,1716587438719,-655.60739133,0.00019724,2]
[327896884,1716587438730,-655.60739133,0.00019724,2]
[327896885,1716587438741,-655.60739133,0.00019724,2]
[327896886,1716587438751,-655.60739133,0.00019724,2]
[327896887,1716587438762,-655.60739133,0.00019724,2]
[327896888,1716587438772,-655.60739133,0.00019724,2]
[327896889,1716587438783,-655.60739133,0.00019724,2]
[327896890,1716587438793,-655.60739133,0.00019724,2]
[327896891,1716587438804,-655.60739133,0.00019724,2]
[327896892,1716587438815,-655.60739133,0.00019724,2]
[327896893,1716587438825,-655.60739133,0.00019724,2]
[327896894,1716587438836,-655.60739133,0.00019724,2]
[327896895,1716587438847,-655.60739133,0.00019724,2]
[327896896,1716587438857,-655.60739133,0.00019724,2]
[327896897,1716587438868,-655.60739133,0.00019724,2]
[327896898,1716587439067,-702.43649061,0.00019724,2]
[327896899,1716587439087,-59422.90482822,0.00019725,2]
[327896900,1716587439097,-719.77956239,0.00019725,2]
[327896901,1716587439107,-194.53180167,0.00019725,2]
[327896902,1716587439117,-1405.48734578,0.0002,2]
[327896903,1716587439127,-7995.03199629,0.0002,2]
[327896904,1716587439137,-181.08892415,0.0002025,2]
[327896905,1716587439147,-1009.89538814,0.00020913,2]
[327896906,1716587439158,-2635.47126691,0.00020913,2]
[327896907,1716587439170,-486.56013612,0.00021268,2]
[327896908,1716587439180,-693.53941589,0.00021589,2]
[327896909,1716587439190,-486.56013612,0.00022913,2]
[327896910,1716587439202,-693.53941589,0.00023555,2]
[327896911,1716587439212,-151.0,0.0002359,5]
[327896912,1716587439222,-6895.68318444,0.00024,2]
[327896913,1716587439233,-151.0,0.00024354,5]
[327896914,1716587439244,-178.663766,0.00024384,2]
[327896915,1716587439254,-260.747592,0.00024384,2]
[327896916,1716587439265,-486.56013612,0.00024557,2]
[327896917,1716587439276,-500.0,0.00024657,2]
[327896918,1716587439286,-500.0,0.00024657,2]
[327896919,1716587439296,-500.0,0.00024657,2]
[327896920,1716587439306,-500.0,0.00024657,2]
[327896921,1716587439317,-500.0,0.00024657,2]
[327896922,1716587439327,-500.0,0.00024657,2]
[327896923,1716587439336,-500.0,0.00024657,2]
[327896924,1716587439347,-500.0,0.00024657,2]
[327896925,1716587439357,-500.0,0.00024657,2]
[327896926,1716587439366,-500.0,0.00024657,2]
[327896927,1716587439376,-500.0,0.00024657,2]
[327896928,1716587439386,-603.17,0.00024657,2]
[327896929,1716587439395,-500.0,0.00024657,2]
[327896930,1716587439405,-500.0,0.00024657,2]
[327896931,1716587439414,-500.0,0.00024657,2]
[327896932,1716587439423,-500.0,0.00024657,2]
[327896933,1716587439432,-500.0,0.00024657,2]
[327896934,1716587439442,-500.0,0.00024657,2]
[327896935,1716587439451,-500.0,0.00024657,2]
[327896936,1716587439461,-500.0,0.00024657,2]
[327896937,1716587439471,-207.87435221,0.00024657,2]
[327896938,1716587439480,-250.0,0.00024657,2]
[327896939,1716587439490,-500.0,0.00024657,2]
[327896940,1716587439499,-500.0,0.00024657,2]
[327896941,1716587439509,-500.0,0.00024657,2]
[327896942,1716587439518,-500.0,0.00024657,2]
[327896943,1716587439527,-523.28984176,0.00024657,2]
[327896944,1716587439537,-500.0,0.00024657,2]
[327896945,1716587439546,-500.0,0.00024657,2]